{"text_format":"1","workbook":"xlsx","n_sheets":13,"sheets":["1. Forside","2. Samlet prisloft","3. Driftsomkostninger","4. Historiske investeringer","5. Gennemførte investeringer","6. Korrektion investeringer","7. Planlagte investeringer","8. 1-1 omkostninger","9. Miljø- og servicemål","10. Klimatilpasning","11. Nettofinansielle poster","12. Over- eller underdækning","13. Kontrol med indtægtsrammen"],"not_rendered":{"charts":0,"images":0,"macros":1,"external_links":0,"defined_names":0,"comments":0,"pivot_tables":0},"unopened":[],"bounds":{"document_bytes":16777216,"sheet_cells":100000,"rows_first":2000,"rows_last":500,"rows_between":2000,"halvings":0,"cell_chars":16384,"cell_head_chars":4096},"cells_cut":0,"cells_raw":0,"read":"whole","date_system":"1900"}

{"sheet":"1. Forside","index":0,"n_rows":27,"n_cols":4,"rows_kept":27,"cut":false,"hidden":false,"merged":[[26,3,26,5],[25,3,25,5],[24,3,24,5],[23,3,23,5],[22,3,22,5],[21,3,21,5],[20,3,20,5],[19,3,19,5],[18,3,18,5],[7,3,7,5],[12,3,12,5],[15,3,15,5],[16,3,16,5],[17,3,17,5]]}
["HOFOR Spildevand Herlev A/S"]
[]
[]
[]
[]
[]
[]
[null,null,null,"Bilag A"]
[]
[]
[]
[]
[null,null,null,"Indholdsfortegnelse"]
[]
[]
[null,null,"Fane nr. 2","Samlet prisloft "]
[null,null,"Fane nr. 3","Driftsomkostninger"]
[null,null,"Fane nr. 4","Historiske investeringer "]
[null,null,"Fane nr. 5","Gennemførte investeringer"]
[null,null,"Fane nr. 6","Korrektion investeringer"]
[null,null,"Fane nr. 7","Planlagte investeringer"]
[null,null,"Fane nr. 8","1:1 omkostninger"]
[null,null,"Fane nr. 9","Miljø- og servicemål"]
[null,null,"Fane nr. 10","Klimatilpasning"]
[null,null,"Fane nr. 11","Nettofinansielle poster"]
[null,null,"Fane nr. 12","Over- eller underdækning"]
[null,null,"Fane nr. 13","Kontrol med indtægtsrammen og oversigt over ekstraordinære effektiviseringsgevinster"]

{"sheet":"2. Samlet prisloft","index":1,"n_rows":38,"n_cols":6,"rows_kept":38,"cut":false,"hidden":false,"merged":[[3,1,3,5]]}
[{"$f":"'1. Forside'!A1","v":"HOFOR Spildevand Herlev A/S"}]
[]
[]
[null,"Fane 2. Samlet prisloft for 2015"]
[]
[null,"Driftsomkostninger"]
[null,"Driftsomkostninger i prisloftet for 2014",{"$f":"'3. Driftsomkostninger'!C19","v":11932836.439989548},"kr."]
[null,"Bortfald af væsentlige omkostninger",{"$f":"-'3. Driftsomkostninger'!C24","v":0},"kr."]
[null,"Korrektion for prisudviklingen 2014-2015",{"$f":"'3. Driftsomkostninger'!C30","v":9546.2691519916389},"kr."]
[null,"Forhøjelse til effektivt niveau iht. benchmarkingen",{"$f":"'3. Driftsomkostninger'!C36","v":0},"kr."]
[null,"Korrektion for generelt effektiviseringskrav",{"$f":"-'3. Driftsomkostninger'!C42","v":-52504.480335954016},"kr."]
[null,"Korrektion for individuelt effektiviseringskrav",{"$f":"-'3. Driftsomkostninger'!C51","v":-596641.82199947746},"kr."]
[null,"Driftsomkostninger i alt",{"$f":"SUM(C7:C12)","v":11293236.406806108},"kr.",{"$f":"C13","v":11293236.406806108}," kr."]
[null,"Investeringer"]
[null,"Tillæg for historiske investeringer",{"$f":"'4. Historiske investeringer'!C9","v":13844874.591595659},"kr."]
[null,"Tillæg for gennemførte investeringer i 2011-2013",{"$f":"'5. Gennemførte investeringer'!F19","v":556275.78},"kr."]
[null,"Korrektion af tillæg for planlagte investeringer vedrørende 2013  ",{"$f":"'6. Korrektion investeringer'!C10","v":71966.226666666684},"kr."]
[null,"Tillæg for planlagte investeringer i 2014 og 2015",{"$f":"'7. Planlagte investeringer'!F25","v":444702.66666666663},"kr."]
[null,"Investeringstillæg i alt",{"$f":"SUM(C15:C18)","v":14917819.264928991},"kr.",{"$f":"C19","v":14917819.264928991}," kr."]
[null,"Øvrige omkostninger mv."]
[null,"Tillæg for 1:1 omkostninger i 2015",{"$f":"'8. 1-1 omkostninger'!C11","v":12746206},"kr."]
[null,"Tillæg vedr. revisorerklæringer og DANVA/FVD-kontingent",{"$f":"'8. 1-1 omkostninger'!C19","v":55000},"kr."]
[null,"Korrektion ift. faktiske 1:1 omkostninger i 2013",{"$f":"'8. 1-1 omkostninger'!C25","v":3522133},"kr."]
[null,"Tillæg for driftsomkostninger til miljø- og servicemål i 2015",{"$f":"'9. Miljø- og servicemål'!C10","v":285000},"kr."]
[null,"Korrektion ift. faktiske driftsomkostninger til miljø- og servicemål i 2013",{"$f":"'9. Miljø- og servicemål'!C17","v":0},"kr."]
[null,"Tillæg for driftsomkostninger til medfinansiering af klimatilpasningsprojekter i 2015",{"$f":"'10. Klimatilpasning'!C9","v":0},"kr."]
[null,"Korrektion ift. faktiske omkostninger til medfinansiering af klimatilpasningsprojekter i 2013",{"$f":"'10. Klimatilpasning'!C16","v":0},"kr."]
[null,"Tillæg/fradrag for nettofinansielle poster i 2015",{"$f":"'11. Nettofinansielle poster'!C9","v":626000},"kr."]
[null,"Korrektion ift. faktiske nettofinansielle poster i 2013",{"$f":"'11. Nettofinansielle poster'!C16","v":-11607},"kr."]
[null,"Øvrige omkostninger mv. i alt",{"$f":"SUM(C21:C29)","v":17222732},"kr.",{"$f":"C30","v":17222732}," kr."]
[null,"Historisk over- eller underdækning"]
[null,"Tillæg/fradrag for over- eller underdækning til og med 2010",{"$f":"'12. Over- eller underdækning'!C11","v":-3258500.8756613755},"kr.",{"$f":"C32","v":-3258500.8756613755}," kr."]
[null,"Korrektion i forhold til tidligere indtægtsramme "]
[null,"Korrektion for overholdelse af indtægtsramme i prisloft 2013",{"$f":"'13. Kontrol med indtægtsrammen'!E27","v":1250859.9705957025},"kr.",{"$f":"C34","v":1250859.9705957025}," kr."]
[null,"Samlet prisloft"]
[null,"Indtægtsramme i 2015 ",null,null,{"$f":"SUM(E13:E34)","v":41426146.76666943}," kr."]
[null,"Debiteret vandmængde i 2013",null,null,1426760," m3"]
[null,"Prisloft 2015",null,null,{"$f":"E36/E37","v":29.035119267900299}," kr./m3"]

{"sheet":"3. Driftsomkostninger","index":2,"n_rows":51,"n_cols":4,"rows_kept":51,"cut":false,"hidden":false,"merged":[[3,1,3,3]]}
[{"$f":"'1. Forside'!A1","v":"HOFOR Spildevand Herlev A/S"}]
[]
[]
[null,"Fane 3. Driftsomkostninger "]
[]
[null,"Driftsomkostningerne i prisloftet for 2014"]
[null,"Korrigerede driftsomkostninger i prisloftet for 2013 (DOiPL 2013)",12167891.379000001,"kr."]
[null,"Prisfremskrivning 1,5 pct.",{"$f":"0.015*SUM(C7:C7)","v":182518.370685},"kr."]
[null,"Generelt effektiviseringskrav (0 pct.)",0,"kr."]
[null,"Individuelt effektiviseringskrav ",-608394.56894999999,"kr."]
[null,"Tillæg i henhold til § 8, stk. 2, pkt. 1",1236160.2397999999,"kr."]
[null,"Driftsomkostningerne i prisloftet for 2014 (DOiPL 2014)",{"$f":"SUM(C7:C11)","v":12978175.420535002},"kr."]
[]
[]
[null,"Forskel i § 8, stk. 2, pkt. 1 - tillæg"]
[null,"Godkendt tillæg i PL2014 angivet i 2014-niveau",1236160.2397999999,"kr."]
[null,"Godkendt tillæg i PL2015 angivet i 2014-niveau",190821.25925454544,"kr."]
[null,"Forskel",{"$f":"C17-C16","v":-1045338.9805454544},"kr."]
[null,"Korrigerede driftsomkostninger i prisloftet for 2014",{"$f":"C12+C18","v":11932836.439989548},"kr."]
[]
[]
[null,"Korrektion for forventet bortfald af væsentlige omkostninger"]
[null,"Selskabets indberettede bortfald af væsentlige omkostninger inden 2015",0,"kr."]
[null,"Korrektion for forventet bortfald ",{"$f":"SUM(C23:C23)","v":0},"kr."]
[]
[]
[null,"Korrektion for prisudviklingen fra 2014-2015"]
[null,"Driftsomkostningerne i prisloftet for 2014",{"$f":"C19-C24","v":11932836.439989548},"kr."]
[null,"Prisudvikling 2014 - 2015 ",0.08,"pct."]
[null,"Korrektion for prisudvikling",{"$f":"C28*(C29/100)","v":9546.2691519916389},"kr."]
[]
[]
[null,"Eventuel forhøjelse til effektivt niveau iht. benchmarkingen"]
[null,"Selskabets effektive driftsomkostninger iht. benchmarkingen",5026110.7085235976,"kr."]
[null,"Selskabets pristalskorrigerede driftsomkostninger i 2015-niveau",{"$f":"C28+C30","v":11942382.709141539},"kr."]
[null,"Eventuel forhøjelse til effektivt niveau",{"$f":"IF(C35>C34,0,C34-C35)","v":0},"kr."]
[]
[]
[null,"Korrektion for generelt effektiviseringskrav"]
[null,"Driftsomkostningerne i prisloftet for 2014",{"$f":"C28","v":11932836.439989548},"kr. "]
[null,"Generelt effektiviseringskrav ",0.44,"pct."]
[null,"Endeligt generelt effektiviseringskrav",{"$f":"C40*(C41/100)","v":52504.480335954016},"kr. "]
[]
[]
[null,"Korrektion for individuelt effektiviseringskrav"]
[null,"Rå effektiviseringspotentiale",6972356.331885892,"kr."]
[null,"Effektiviseringspotentiale efter eventuel korrektion for særlige forhold",6906725.7314659487,"kr."]
[null,"Effektiviseringspotentiale efter forsigtighedshensyn",5410348.041891261,"kr."]
[null,"Effektiviseringspotentiale efter eventuel korrektion for sammensætning af signifikante costdrivere",5410348.041891261,"kr. "]
[null,"Umiddelbart effektiviseringskrav",{"$f":"C49/4","v":1352587.0104728153},"kr."]
[null,"Endeligt individuelt effektiviseringskrav",{"$f":"IF(C50>0.05*C28,0.05*C28,IF(C50<0.01*C28,0,C50))","v":596641.82199947746},"kr. "]

{"sheet":"4. Historiske investeringer","index":3,"n_rows":9,"n_cols":4,"rows_kept":9,"cut":false,"hidden":false,"merged":[[3,1,3,2]]}
[{"$f":"'3. Driftsomkostninger'!A1","v":"HOFOR Spildevand Herlev A/S"}]
[]
[]
[null,"Fane 4. Historiske investeringer "]
[]
[null,"Tillæg for historiske investeringer "]
[null,"Værdi af selskabets materielle anlægsaktiver pr. 1. januar 2010",431340145.86189896,"kr."]
[null,"Den årlige standardafskrivning på de materielle anlægsaktiver iht. POLKA",13844874.591595659,"kr."]
[null,"Tillæg i alt i 2015",{"$f":"C8","v":13844874.591595659},"kr."]

{"sheet":"5. Gennemførte investeringer","index":4,"n_rows":19,"n_cols":7,"rows_kept":19,"cut":false,"hidden":false,"merged":[[3,1,3,5],[6,5,6,6]]}
[{"$f":"'4. Historiske investeringer'!A1","v":"HOFOR Spildevand Herlev A/S"}]
[]
[]
[null,"Fane 5. Gennemførte investeringer i 2010 - 2013 "]
[]
[null,"Tillæg for gennemførte investeringer i 2013"]
[null," Beskrivelse af investeringen   ","Årstal ","Std. levetid (år)   "," Anskaffelses-pris (kr.)","Afskrivning "]
[null,"Administrationbygninger",2013,75,49490,{"$f":"E8/D8","v":659.86666666666667},"kr."]
[null,"Forsinkelsesbassiner, lukkede med automatisk rensning og SRO Miljøklasse A (1.000-3.000 m3) - Konstruktioner",2013,75,809221,{"$f":"E9/D9","v":10789.613333333333},"kr."]
[null,"Pumpeinstallation Miljøklasse A (1.000-1.500 l/s) - Mek/EL",2013,20,7319,365.95,"kr."]
[null,"Pumpestationer m. overbygning (< 20 m2), Konstruktioner",2013,50,41394,827.88,"kr."]
[null,"Pumpestationer m. overbygning (< 20 m2), Mek/EL",2013,20,527087,26354.35,"kr."]
[null,"Pumpestationer m. overbygning (< 20 m2), SRO",2013,10,880928,88092.800000000003,"kr."]
[null,"Stik",2013,75,364595,4861.2666666666664,"kr."]
[null,"Strømpeforing Ø 500 mm < Ledningsnet = Ø 800 mm",2013,50,3031438,60628.76,"kr."]
[null,"Ø 200 mm < Ledningsnet = Ø 500 mm",2013,75,1242197,16562.626666666667,"kr."]
[null,"Tillæg for 2013 ",null,null,null,{"$f":"SUM(F8:F16)","v":209143.11333333334},"kr."]
[null,"Tillæg for 2010 - 2012",null,null,null,347132.66666666663,"kr."]
[null,"Samlet tillæg for gennemførte investeringer",null,null,null,{"$f":"F17+F18","v":556275.78},"kr."]

{"sheet":"6. Korrektion investeringer","index":5,"n_rows":10,"n_cols":4,"rows_kept":10,"cut":false,"hidden":false,"merged":[[3,1,3,3]]}
[{"$f":"'5. Gennemførte investeringer'!A1","v":"HOFOR Spildevand Herlev A/S"}]
[]
[]
[null,"Fane 6. Korrektion af tillæg for planlagte investeringer"]
[]
[null,"Korrektion af tillæg for planlagte investeringer vedr. 2013"]
[null,"Tillæg for planlagte investeringer i 2013 i prisloft 2013",0,"kr."]
[null,"Tillæg for planlagte investeringer i 2013 i prisloft 2014",346320,"kr."]
[null,"Selskabets faktiske afskrivninger på gennemførte investeringer i 2013",{"$f":"'5. Gennemførte investeringer'!F17","v":209143.11333333334},"kr."]
[null,"Korrektion af tillæg for planlagte investeringer vedr. 2013",{"$f":"C9-C7+C9-C8","v":71966.226666666684},"kr."]

{"sheet":"7. Planlagte investeringer","index":6,"n_rows":25,"n_cols":7,"rows_kept":25,"cut":false,"hidden":false,"merged":[[6,5,6,6],[3,1,3,6]]}
[{"$f":"'6. Korrektion investeringer'!A1","v":"HOFOR Spildevand Herlev A/S"}]
[]
[]
[null,"Fane 7. Planlagte investeringer "]
[]
[null,"Tillæg for planlagte investeringer i 2014 og 2015"]
[null,"Beskrivelse af investeringen   ","Årstal ","Std. levetid (år)   ","Anskaffelses-pris (kr.)   ","Afskrivning"]
[null,"Forsinkelsesbassiner, lukkede med automatisk rensning og SRO Miljøklasse A (1.000-3.000 m3) - Konstruktioner",2014,75,3300000,{"$f":"E8/D8","v":44000},"kr."]
[null,"Forsinkelsesbassiner, lukkede med automatisk rensning og SRO Miljøklasse A (1.000-3.000 m3) - Mek/EL",2014,20,500000,{"$f":"E9/D9","v":25000},"kr."]
[null,"Installationer \"ingen eller faste riste\" (mindre end 7 m2)",2014,20,250000,{"$f":"E10/D10","v":12500},"kr."]
[null,"Pumpestationer m. overbygning (< 20 m2), Mek/EL",2014,20,250000,12500,"kr."]
[null,"Ø 200 mm < Ledningsnet = Ø 500 mm",2014,75,9300000,124000,"kr."]
[null,"Stik",2014,75,200000,2666.6666666666665,"kr."]
[null,"Strømpeforing Ø 200 mm < Ledningsnet = Ø 500 mm",2014,50,1800000,36000,"kr."]
[null,"Kælder",2015,75,2250000,30000,"kr."]
[null,"Ledningsnet > Ø 1600 mm (rørbassiner og transportledninger)",2015,75,1080000,14400,"kr."]
[null,"Pumpeinstallation Miljøklasse B (1.000-1.500 l/s) - Mek/EL",2015,20,225000,11250,"kr."]
[null,"Pumpeinstallation Miljøklasse B (1.000-1.500 l/s) - SRO",2015,10,197084,19708.400000000001,"kr."]
[null,"GIS datasystem",2015,5,129600,25920,"kr."]
[null,"Stik",2015,75,180000,2400,"kr."]
[null,"Ø 1200 mm < Ledningsnet = Ø 1600 mm",2015,75,6185225,82469.666666666672,"kr."]
[null,"Ø 1200 mm < Ledningsnet = Ø 1600 mm",2015,75,141595,{"$f":"E22/D22","v":1887.9333333333334},"kr."]
[null,"Tillæg for 2014",null,null,null,{"$f":"SUMIF(C8:C22,\"2014\",F8:F22)","v":256666.66666666666},"kr."]
[null,"Tillæg for 2015",null,null,null,{"$f":"SUMIF(C8:C22,\"2015\",F8:F22)","v":188035.99999999997},"kr."]
[null,"Tillæg i alt",null,null,null,{"$f":"F23+F24","v":444702.66666666663},"kr."]

{"sheet":"8. 1-1 omkostninger","index":7,"n_rows":25,"n_cols":4,"rows_kept":25,"cut":false,"hidden":false,"merged":[[3,1,3,3],[15,1,15,3],[21,1,21,3]]}
[{"$f":"'7. Planlagte investeringer'!A1","v":"HOFOR Spildevand Herlev A/S"}]
[]
[]
[null,"Fane 8. 1:1 omkostninger"]
[]
[null,"Tillæg for budgetterede 1:1 omkostninger i 2015"]
[null,"Betaling til Forsyningssekretariatet",33000,"kr."]
[null,"Køb af varer og tjenesteydelser hos et andet prisloftreguleret vandselskab",11063206,"kr."]
[null,"Selskabsskat",1000000,"kr."]
[null,"Ejendomsskatter",650000,"kr."]
[null,"Tillæg i alt ",{"$f":"SUM(C7:C10)","v":12746206},"kr."]
[]
[]
[]
[]
[null,"Tillæg for budgetterede nødvendige udgifter til revisorerklæringer samt ordinært medlemskab af DANVA og FVD i 2015"]
[null,"Betaling for ordinært medlemskab af DANVA/FVD",40000,"kr."]
[null,"Betaling for revisorerklæringer",15000,"kr."]
[null,"Tillæg i alt ",{"$f":"SUM(C17:C18)","v":55000},"kr."]
[]
[]
[null,"Korrektion af tillæg for faktiske 1:1 omkostninger (inkl. revisorerklæringer og ordinært medlemskab af DANVA/FVD) i 2013"]
[null,"Selskabets faktiske 1:1 omkostninger mv. i 2013, jf. reguleringsregnskabet",15896633,"kr."]
[null,"Tillæg for budgetterede 1:1 omkostninger mv. i prisloft 2013",12374500,"kr."]
[null,"Korrektion af tillæg for budgetterede 1:1 omkostninger mv. i 2013",{"$f":"C23-C24","v":3522133},"kr."]

{"sheet":"9. Miljø- og servicemål","index":8,"n_rows":17,"n_cols":4,"rows_kept":17,"cut":false,"hidden":false,"merged":[[3,1,3,3]]}
[{"$f":"'8. 1-1 omkostninger'!A1","v":"HOFOR Spildevand Herlev A/S"}]
[]
[]
[null,"Fane 9. Driftsomkostninger til miljø- og servicemål "]
[]
[null,"Tillæg for budgetterede driftsomkostninger til miljø- og servicemål i 2015"]
[null,"Dokumenteret Drikkevandssikkerhed (DDS)",70000,"kr."]
[null,"Vand- og Energiværksted",85000,"kr."]
[null,"Overtagelse af private ledninger",130000,"kr."]
[null,"Tillæg i alt",{"$f":"SUM(C7:C9)","v":285000},"kr."]
[]
[]
[]
[null,"Korrektion af tillæg for faktiske driftsomkostninger til miljø- og servicemål i 2013"]
[null,"Selskabets faktiske driftsomkostninger til miljø- og servicemål i 2013, jf. reguleringsregnskabet",0,"kr."]
[null,"Tillæg for budgetterede driftsomkostninger til miljø- og servicemål i prisloft 2013",0,"kr."]
[null,"Korrektion af tillæg for budgetterede driftsomkostninger til miljø- og servicemål i 2013",{"$f":"C15-C16","v":0},"kr."]

{"sheet":"10. Klimatilpasning","index":9,"n_rows":16,"n_cols":4,"rows_kept":16,"cut":false,"hidden":false,"merged":[[3,1,3,3],[12,1,12,3],[6,1,6,3]]}
[{"$f":"'9. Miljø- og servicemål'!A1","v":"HOFOR Spildevand Herlev A/S"}]
[]
[]
[null,"Fane 10. Medfinansiering af klimatilpasningsprojekter"]
[]
[]
[null,"Tillæg for budgetterede omkostninger til medfinansiering af klimatilpasningsprojekter i 2015"]
[null,null,0,"kr."]
[null,"Tillæg i alt",{"$f":" SUM(C8:C8)","v":0},"kr."]
[]
[]
[]
[null,"Korrektion af tillæg for faktiske omkostninger til medfinansiering af klimatilpasningsprojekter i 2013"]
[null,"Selskabets faktiske driftsomkostninger til klimatilpasningsprojekter i 2013, jf. reguleringsregnskabet",0,"kr."]
[null,"Tillæg for budgetterede driftsomkostninger til klimatilpasningsprojekter i prisloft 2013",0,"kr."]
[null,"Korrektion af tillæg for budgetterede omkostninger til klimatilpasningsprojekter i 2013",{"$f":"C14-C15","v":0},"kr."]

{"sheet":"11. Nettofinansielle poster","index":10,"n_rows":16,"n_cols":4,"rows_kept":16,"cut":false,"hidden":false,"merged":[[3,1,3,3]]}
[{"$f":"'10. Klimatilpasning'!A1","v":"HOFOR Spildevand Herlev A/S"}]
[]
[]
[null,"Fane 11. Nettofinansielle poster"]
[]
[null,"Tillæg for budgetterede nettofinansielle poster i 2015"]
[null,"Budgetterede renteudgifter og gebyrer i 2015",656000,"kr."]
[null,"Budgetterede renteindtægter i 2015",30000,"kr."]
[null,"Tillæg/fradrag i alt",{"$f":"C7-C8","v":626000},"kr."]
[]
[]
[]
[null,"Korrektion af tillæg for faktiske nettofinansielle poster i 2013"]
[null,"Selskabets faktiske nettofinansielle poster i 2013, jf. reguleringsregnskabet",223393,"kr."]
[null,"Tillæg for budgetterede nettofinansielle poster i prisloft 2013",235000,"kr."]
[null,"Korrektion af tillæg for budgetterede nettofinansielle poster i 2013",{"$f":"C14-C15","v":-11607},"kr."]

{"sheet":"12. Over- eller underdækning","index":11,"n_rows":11,"n_cols":4,"rows_kept":11,"cut":false,"hidden":false,"merged":[[3,1,3,3]]}
[{"$f":"'11. Nettofinansielle poster'!A1","v":"HOFOR Spildevand Herlev A/S"}]
[]
[]
[null,"Fane 12. Over- eller underdækning til og med 2010"]
[]
[null,"Tillæg/fradrag for over- eller underdækning til og med 2010"]
[null,"Opgjort over- eller underdækning per 31. december 2010",-33431479,"kr."]
[null,"Heraf beløb indregnet i prislofterne for 2011 - 2014",-13880473.746031746,"kr."]
[null,"Endnu ikke indregnet over- eller underdækning",{"$f":"C7-C8","v":-19551005.253968254},"kr."]
[null,"Resterende indregningsperiode (fastsat i prisloftet for 2012)",6,"år"]
[null,"Tillæg/fradrag i alt",{"$f":"IF(C7=0,0,C9/C10)","v":-3258500.8756613755},"kr."]

{"sheet":"13. Kontrol med indtægtsrammen","index":12,"n_rows":38,"n_cols":12,"rows_kept":38,"cut":false,"hidden":false,"merged":[[3,1,3,5],[30,1,30,4],[5,1,5,5]]}
[{"$f":"'12. Over- eller underdækning'!A1","v":"HOFOR Spildevand Herlev A/S"}]
[]
[]
[null,"Fane 13. Korrektion for overholdelse af indtægtsrammen i prisloftet for 2013"]
[]
[null,"Samlet opgørelse vedrørende overholdelse af indtægtsrammen i prisloftet for 2013"]
[null,"Indtægtsramme i prisloftet for 2013",null,null,38274209.970595703,"kr."]
[null,"Ikke anvendt likviditet vedrørende investeringer i 2013"]
[null,"Tillæg for historiske investeringer ",14184874.591595659,"kr."]
[null,"Tillæg for gennemførte investeringer i 2011",899830,"kr."]
[null,"Korrektion af tillæg for planlagte investeringer i 2011",-260555,"kr."]
[null,"Tillæg for planlagte investeringer i 2012 og 2013",666167,"kr."]
[null,"Indtægter fra tilslutningsbidrag",0,"kr."]
[null,"Indtægter fra salg af anlægsaktiver",0,"kr."]
[null,"Erstatninger vedr. anlægsaktiver mv.",0,"kr."]
[null,"Ekstraordinær effektiviseringsgevinst anvendt til investeringer",0,"kr."]
[null,"Udgifter til investeringer",-15490317,"kr."]
[null,"Ikke anvendt likviditet vedr. investeringer i alt",{"$f":"SUM(C9:C17)","v":-0.40840434096753597},"kr.",{"$f":"IF(C18<0,0,-C18)","v":0},"kr."]
[null,"Ekstraordinære effektiviseringsgevinster anvendt til takstnedsættelse"]
[null,"Ekstraordinær effektiviseringsgevinst anvendt til takstnedsættelse",0,"kr.",{"$f":"-C20","v":0},"kr."]
[null,"Korrektion af ikke opkrævet tillæg fra 2011 i prisloft 2013"]
[null,"Korrektion af ikke opkrævet tillæg fra 2011 i prisloft 2013",0,"kr.",{"$f":"-C22","v":0},"kr."]
[null,"Indtægter fra primære aktiviteter mv."]
[null,"Indtægter fra kubikmetertakster, faste takster, særbidrag, målergebyrer samt andre takster og gebyrer",37023350,"kr."]
[null,"Andre indtægter i prisloftåret, som selskabet har opnået i forbindelse med eller som følge af selskabets primære aktiviteter",0,"kr."]
[null,"Indtægter fra primære aktiviteter mv. i alt",{"$f":"SUM(C24:C25)","v":37023350},"kr.",{"$f":"-C26","v":-37023350},"kr."]
[null,"Tillæg/fradrag i prisloftet for 2015 i alt",null,null,{"$f":"E7+E18+E20+E22+E26","v":1250859.9705957025},"kr."]
[]
[]
[]
[null,"Oversigt over ekstraordinære effektiviseringsgevinster"]
[]
[null,null,2012,null,2013,null,2014,null,2015,null,2016]
[null,"Indhentet ekstraordinær effektiviseringsgevinst",0,"kr.",4792322,"kr.",null,"kr.",null,"kr.",null,"kr."]
[null,"Gevinst anvendt til investeringer",0,"kr.",0,"kr.",null,"kr.",null,"kr.",null,"kr."]
[null,"Gevinst anvendt til takstnedsættelse",0,"kr.",0,"kr.",null,"kr.",null,"kr.",null,"kr."]
[null,"Korrektion for  effektiviseringsgevinst der ikke er anvendt inden 4 år",0,"kr.",0,"kr.",null,"kr.",null,"kr.",{"$f":"IF(C38>SUM(E35:I36),C38-SUM(E35:I36),0)*-1","v":0},"kr."]
[null,"Resterende gevinst",{"$f":"C34-C35-C36","v":0},"kr.",{"$f":"C38+E34-E35-E36","v":4792322},"kr.",{"$f":"E38+G34-G35-G36","v":4792322},"kr.",{"$f":"G38+I34-I35-I36","v":4792322},"kr.",{"$f":"K34-K35-K36+K37+I38","v":4792322},"kr."]